Workbook

Sheet Disclaimer & uitleg model
L21: voorbeeld:

Sheet CO2-berekening
B2: Berekening CO2-emissie geothermie in warmtenetwerk
D5: Warmtenet | H5: Warmteverlies | N5: Geothermiebron (basislast) | Q5: =aandeel_geowater+aandeel_formatiegas+aandeel_WP -> 0.82016 | R5: totaal | AA5: Evt. andere bronnen (basis/schouder last) | AH5: Bijstook / pieklast
C7: Totale warmtevraag (%) | D7: =SUM(aandeel_geowater,aandeel_formatiegas,aandeel_bron1,aandeel_bron2,aandeel_bron3,aandeel_WP,aandeel_piek1,aandeel_piek2) -> 1.00016 | H7: 0.2 | N7: Geowater (bronpompen) | Q7: Bijvangst (formatiegas) | U7: Geowater (warmtepomp) | Y7: Bron 1 | AA7: Bron 2 | AC7: Bron 3 | AG7: Bijstook 1 | AI7: Bijstook 2
C8: Benodigde warmtelevering | D8: =D15*1000 -> 375000 | E8: GJth | M8: Aandeel in warmtevraag (%) | N8: =GT_prod_water/D8 -> 0.6688 | Q8: =IF(bijvangst="vul waarde in","vul waarde in",GT_prod_gas/D8) -> 0.08448 | U8: =U13/D8 -> 0.06688 | Y8: 0 | AA8: 0 | AC8: 0 | AG8: 0.18 | AI8: 0
Q9: Formatie
D11: Berekening warmtevraag en -levering: | M11: Bijvangst (ja/nee) | N11: ja | Q11: Jura/Krijt ouderdom | T11: Uitkoeling | U11: 5 | V11: °C | Y11: Biomassa, uit NL 2020 | AA11: AVI | AC11: - bron - | AG11: Aardgasketel (NL) | AI11: - bron -
C12: Woningequivalenten | D12: 10000 | E12: weq | M12: Elektricteitsverbruik (1 of 2 invullen): | Q12: Gemiddelde bijvangst: | T12: Vermogen | U12: =debiet*(U11)*Cpwater*Rhowater*10^-6/3600 -> 1.161111111 | V12: MWth
C13: Energieverbruik/weq | D13: 30 | E13: GJ/weq | F13: warmtemonitor | M13: 1) Totaal geconsumeerde elektriciteit | N13: 0 | O13: GJe/jaar | Q13: =IF(N11="ja",IF(Q11='Parameters & aannames'!C26,'Parameters & aannames'!E26,IF(Q11='Parameters & aannames'!C27,'Parameters & aannames'!E27,IF(Q11='Parameters & aannames'!C28,'Parameters & aannames'!E28))),IF(N11="nee",0)) -> 1 | R13: Nm3/m3 | T13: Warmte | U13: =debiet*(U11)*Cpwater*Rhowater*10^-6/3600*draaiuren*3.6 -> 25080 | V13: GJth_prod
C14: Warmtevraag | D14: =D12*D13/1000 -> 300 | E14: TJ | F14: excl. warmteverliezen | M14: 2) COP bronpomp | N14: 20 | Q14: Emissiefactor bijvangst: | T14: COP | U14: 5
C15: Benodigde warmtelevering | D15: =D14/(1-aandeel_verlies) -> 375 | E15: TJ | F15: incl. warmteverliezen | M15: Productietemperatuur | N15: 80 | O15: °C | Q15: =IF(Q11='Parameters & aannames'!C26,'Parameters & aannames'!F26,IF(Q11='Parameters & aannames'!C27,'Parameters & aannames'!F27,IF(Q11='Parameters & aannames'!C28,'Parameters & aannames'!F28))) -> 64 | R15: kgCO2/GJp
M16: Retourtemperatuur (zonder WP) | N16: 30 | O16: °C | Q16: Warmte uit bijvangst
M17: Vollasturen | N17: 6000 | O17: uur/jaar | Q17: =IF(Q11='Parameters & aannames'!C26,'Parameters & aannames'!G26,IF(Q11='Parameters & aannames'!C27,'Parameters & aannames'!G27,IF(Q11='Parameters & aannames'!C28,'Parameters & aannames'!G28))) -> 0.033 | R17: GJ/m3
M18: Max. debiet | N18: 200 | O18: m3/h | Q18: Energie in en uit ketel:
C19: =IF(D7>1.005,"Let op! Aandeel in warmtevraag > 100% (cel D7)",IF(D7<0.995,"Let op! Aandeel in warmtevraag < 100% (cel D7)","")) ->  | M19: Vermogen | N19: =debiet*(N15-N16)*Cpwater*Rhowater*10^-6/3600 -> 11.61111111 | O19: MWth | Q19: =IF(bijvangst="vul waarde in","vul waarde in",((debiet*bijvangst)*$Q$17)*draaiuren) -> 39600 | R19: GJp
C20: =IF(AND(GT_elec="",COP_GT=""),"Vul elec verbruik of COP in (cel N13 of N14)",IF(AND(GT_elec>=0.1,COP_GT>=0.1),"Vul óf elek verbruik in óf COP in (cel N13 of N14)",IF(COP_GT="0","Verwijder 0 in cel N14",IF(GT_elec="0","Verwijder 0 in cel N13","")))) ->  | M20: Jaarlijkse energieproductie | N20: =N19*draaiuren*3.6 -> 250800 | O20: GJth_prod | Q20: =IF(bijvangst="vul waarde in","vul waarde in",((debiet*bijvangst)*$Q$17)*draaiuren*rendement_gasketel) -> 31680 | R20: GJth_prod
D36: Totaal geleverd (incl. verliezen) | H36: Warmteverlies | J36: Totaal aanvoer | M36: Bron (2020): | N36: Geowater (bronpompen) | Q36: Bijvangst | T36: Geowater (WP) | Y36: Bron 1 | AA36: Bron 2 | AC36: Bron 3 | AG36: Bijstook 1 | AI36: Bijstook 2
C37: Geleverd bij eindgebruiker | D37: =J37*(1-aandeel_verlies) -> 300.048 | E37: TJgeleverd | J37: =SUM(N37,Q37,Y37,AA37,AC37,T37,AG37,AI37) -> 375.06 | K37: TJprod | M37: Aanvoer warmte in net: | N37: =GT_prod_water/1000 -> 250.8 | O37: TJprod | Q37: =GT_prod_gas/1000 -> 31.68 | R37: TJprod | T37: =U13/1000 -> 25.08 | U37: TJprod | Y37: =aandeel_bron1*$D$8/1000 -> 0 | Z37: TJprod | AA37: =aandeel_bron2*$D$8/1000 -> 0 | AB37: TJprod | AC37: =aandeel_bron3*$D$8/1000 -> 0 | AD37: TJprod | AG37: =aandeel_piek1*$D$8/1000 -> 67.5 | AH37: TJprod | AI37: =aandeel_piek2*$D$8/1000 -> 0 | AJ37: TJprod
D38: =J38 -> 8286.4625 | E38: ton | J38: =SUM(N38,Q38,Y38,AA38,AC38,T38,AG38,AI38) -> 8286.4625 | K38: ton | M38: CO2-emissie: | N38: =IF(AND(GT_elec="",COP_GT=""),"vul elec verbruik of COP in",IF(AND(COP_GT>0.1,GT_elec<0.1),((GT_prod_water/COP_GT)*emissiefactor_elektriciteit_2020),IF(AND(GT_elec>0.1,COP_GT<0.1),GT_elec*emissiefactor_elektriciteit_2020)))/1000 -> 1045 | O38: ton | Q38: =$Q$19*$Q$15/1000 -> 2534.4 | R38: ton | T38: =(1/COP_WP)*U13*emissiefactor_elektriciteit_2020/1000 -> 418 | U38: ton | Y38: =VLOOKUP($Y$11,'Parameters & aannames'!$C$32:$I$47,MATCH(AO53,'Parameters & aannames'!$C$32:$I$32,0),FALSE)*Y37 -> 0 | Z38: ton | AA38: =VLOOKUP($AA$11,'Parameters & aannames'!$C$32:$I$47,MATCH(AO53,'Parameters & aannames'!$C$32:$I$32,0),FALSE)*AA37 -> 0 | AB38: ton | AC38: =VLOOKUP($AC$11,'Parameters & aannames'!$C$32:$I$47,MATCH(AO53,'Parameters & aannames'!$C$32:$I$32,0),FALSE)*AC37 -> 0 | AD38: ton | AG38: =VLOOKUP($AG$11,'Parameters & aannames'!$C$32:$I$47,MATCH(AO53,'Parameters & aannames'!$C$32:$I$32,0),FALSE)*AG37 -> 4289.0625 | AH38: ton | AI38: =VLOOKUP($AG$11,'Parameters & aannames'!$C$32:$I$47,MATCH(AO53,'Parameters & aannames'!$C$32:$I$32,0),FALSE)*AI37 -> 0 | AJ38: ton
D39: =J39/(1-aandeel_verlies) -> 27.62154167 | E39: kg/GJ | J39: =SUM(N39,Q39,Y39,AA39,AC39,T39,AG39,AI39) -> 22.09723333 | K39: kg/GJ | M39: CO2-factor: | N39: =IF(N37=0,0,N38/N37)*aandeel_geowater -> 2.786666667 | O39: kg/GJ | Q39: =IF(Q37=0,0,Q38/Q37)*aandeel_formatiegas -> 6.7584 | R39: kg/GJ | T39: =IF(T37=0,0,T38/T37)*aandeel_WP -> 1.114666667 | U39: kg/GJ | Y39: =IF(Y37=0,0,Y38/Y37)*aandeel_bron1 -> 0 | Z39: kg/GJ | AA39: =IF(AA37=0,0,AA38/AA37)*aandeel_bron2 -> 0 | AB39: kg/GJ | AC39: =IF(AC37=0,0,AC38/AC37)*aandeel_bron3 -> 0 | AD39: kg/GJ | AG39: =IF(AG37=0,0,AG38/AG37)*aandeel_piek1 -> 11.4375 | AH39: kg/GJ | AI39: =IF(AI37=0,0,AI38/AI37)*aandeel_piek2 -> 0 | AJ39: kg/GJ
D40: =D39/$D$39 -> 1 | H40: =D40-J40 -> 0.2 | J40: =J39/$D$39 -> 0.8 | M40: % CO2 emissie in warmtenet: | N40: =N39/$D$39 -> 0.1008874414 | Q40: =Q39/$D$39 -> 0.2446785948 | T40: =T39/$D$39 -> 0.04035497657 | Y40: =Y39/$D$39 -> 0 | AA40: =AA39/$D$39 -> 0 | AC40: =AC39/$D$39 -> 0 | AG40: =AG39/$D$39 -> 0.4140789873 | AI40: =AI39/$D$39 -> 0
AH44: Emissie geothermie bron | AO44: 2020 | AP44: 2025 | AQ44: 2030 | AR44: 20XX
AH45: Emissie pompen | AN45: kg | AO45: =IF(AND(GT_elec="",COP_GT=""),"vul elec verbruik of COP in",IF(AND(COP_GT>0.1,GT_elec<0.1),((GT_prod_water/COP_GT)*emissiefactor_elektriciteit_2020),IF(AND(GT_elec>0.1,COP_GT<0.1),GT_elec*emissiefactor_elektriciteit_2020))) -> 1045000 | AP45: =IF(AND(GT_elec="",COP_GT=""),"vul elec verbruik of COP in",IF(AND(COP_GT>0.1,GT_elec<0.1),((GT_prod_water/COP_GT)*emissiefactor_elektriciteit_2025),IF(AND(GT_elec>0.1,COP_GT<0.1),GT_elec*emissiefactor_elektriciteit_2025))) -> 731500 | AQ45: =IF(AND(GT_elec="",COP_GT=""),"vul elec verbruik of COP in",IF(AND(COP_GT>0.1,GT_elec<0.1),((GT_prod_water/COP_GT)*emissiefactor_elektriciteit_2030),IF(AND(GT_elec>0.1,COP_GT<0.1),GT_elec*emissiefactor_elektriciteit_2030))) -> 313500 | AR45: =IF(AND(GT_elec="",COP_GT=""),"vul elec verbruik of COP in",IF(AND(COP_GT>0.1,GT_elec<0.1),((GT_prod_water/COP_GT)*emissiefactor_elektriciteit_20XX),IF(AND(GT_elec>0.1,COP_GT<0.1),GT_elec*emissiefactor_elektriciteit_20XX))) -> 0
AH46: Emissie bijvangst | AN46: kg | AO46: =$Q$19*$Q$15 -> 2534400 | AP46: =$Q$19*$Q$15 -> 2534400 | AQ46: =$Q$19*$Q$15 -> 2534400 | AR46: =$Q$19*$Q$15 -> 2534400
AH47: Emissie warmtepomp | AN47: kg | AO47: =(1/COP_WP)*GT_prod_wp*emissiefactor_elektriciteit_2020 -> 418000 | AP47: =(1/COP_WP)*GT_prod_wp*emissiefactor_elektriciteit_2025 -> 292600 | AQ47: =(1/COP_WP)*GT_prod_wp*emissiefactor_elektriciteit_2030 -> 125400 | AR47: =(1/COP_WP)*GT_prod_wp*emissiefactor_elektriciteit_20XX -> 0
AH48: CO2 factor pompen | AN48: kg/GJ | AO48: =AO45/(GT_prod_water+GT_prod_gas+GT_prod_wp) -> 3.397711016 | AP48: =AP45/(GT_prod_water+GT_prod_gas+GT_prod_wp) -> 2.378397711 | AQ48: 1.019313305 | AR48: 0
AH49: CO2 factor bijvangst | AN49: kg/GJ | AO49: 8.240343348 | AP49: 8.240343348 | AQ49: 8.240343348 | AR49: 8.240343348
AH50: CO2 factor warmtepomp | AN50: kg/GJ | AO50: 1.359084406 | AP50: 0.9513590844 | AQ50: 0.4077253219 | AR50: 0
AH51: CO2 emissie totaal bron | AN51: kg/GJ | AO51: =AO48+AO49+AO50 -> 12.99713877 | AP51: =AP48+AP49+AP50 -> 11.57010014 | AQ51: =AQ48+AQ49+AQ50 -> 9.667381974 | AR51: =AR48+AR49+AR50 -> 8.240343348
AH53: Emissie warmtenet | AO53: 2020 | AP53: 2025 | AQ53: 2030 | AR53: 20XX
AH54: Emissie geothermiebron | AN54: kg/GJ | AO54: =AO55+AO56+AO57 -> 10.65973333 | AP54: =AP55+AP56 -> 8.709066667 | AQ54: =AQ55+AQ56 -> 7.5944 | AR54: =AR55+AR56 -> 6.7584
AH55: Emissie geothermiebron - pompen | AN55: kg/GJ | AO55: =AO45/GT_prod_water*aandeel_geowater -> 2.786666667 | AP55: =AP45/GT_prod_water*aandeel_geowater -> 1.950666667 | AQ55: =AQ45/GT_prod_water*aandeel_geowater -> 0.836 | AR55: =AR45/GT_prod_water*aandeel_geowater -> 0
AH56: Emissie geothermiebron - bijvangst | AN56: kg/GJ | AO56: =AO46/GT_prod_gas*aandeel_formatiegas -> 6.7584 | AP56: =AP46/GT_prod_gas*aandeel_formatiegas -> 6.7584 | AQ56: =AQ46/GT_prod_gas*aandeel_formatiegas -> 6.7584 | AR56: =AR46/GT_prod_gas*aandeel_formatiegas -> 6.7584
AH57: Emissie warmtepomp | AN57: kg/GJ | AO57: =IF($U$11=0,0,AO47/GT_prod_wp*aandeel_WP) -> 1.114666667 | AP57: =IF($U$11=0,0,AP47/GT_prod_wp*aandeel_WP) -> 0.7802666667 | AQ57: =IF($U$11=0,0,AQ47/GT_prod_wp*aandeel_WP) -> 0.3344 | AR57: =IF($U$11=0,0,AR47/GT_prod_wp*aandeel_WP) -> 0
AH58: ="Emissie "&Y11 -> Emissie Biomassa, uit NL 2020 | AN58: kg/GJ | AO58: =VLOOKUP($Y$11,'Parameters & aannames'!$C$32:$I$47,MATCH(AO53,'Parameters & aannames'!$C$32:$I$32,0),FALSE)*aandeel_bron1 -> 0 | AP58: =VLOOKUP($Y$11,'Parameters & aannames'!$C$32:$I$47,MATCH(AP53,'Parameters & aannames'!$C$32:$I$32,0),FALSE)*aandeel_bron1 -> 0 | AQ58: =VLOOKUP($Y$11,'Parameters & aannames'!$C$32:$I$47,MATCH(AQ53,'Parameters & aannames'!$C$32:$I$32,0),FALSE)*aandeel_bron1 -> 0 | AR58: =VLOOKUP($Y$11,'Parameters & aannames'!$C$32:$I$47,MATCH(AR53,'Parameters & aannames'!$C$32:$I$32,0),FALSE)*aandeel_bron1 -> 0
AH59: ="Emissie "&AA11 -> Emissie AVI | AN59: kg/GJ | AO59: =VLOOKUP($AA$11,'Parameters & aannames'!$C$32:$I$47,MATCH(AO53,'Parameters & aannames'!$C$32:$I$32,0),FALSE)*aandeel_bron2 -> 0 | AP59: =VLOOKUP($AA$11,'Parameters & aannames'!$C$32:$I$47,MATCH(AP53,'Parameters & aannames'!$C$32:$I$32,0),FALSE)*aandeel_bron2 -> 0 | AQ59: =VLOOKUP($AA$11,'Parameters & aannames'!$C$32:$I$47,MATCH(AQ53,'Parameters & aannames'!$C$32:$I$32,0),FALSE)*aandeel_bron2 -> 0 | AR59: =VLOOKUP($AA$11,'Parameters & aannames'!$C$32:$I$47,MATCH(AR53,'Parameters & aannames'!$C$32:$I$32,0),FALSE)*aandeel_bron2 -> 0
AH60: ="Emissie "&AC11 -> Emissie - bron - | AN60: kg/GJ | AO60: =VLOOKUP($AC$11,'Parameters & aannames'!$C$32:$I$47,MATCH(AO53,'Parameters & aannames'!$C$32:$I$32,0),FALSE)*aandeel_bron3 -> 0 | AP60: =VLOOKUP($AC$11,'Parameters & aannames'!$C$32:$I$47,MATCH(AP53,'Parameters & aannames'!$C$32:$I$32,0),FALSE)*aandeel_bron3 -> 0 | AQ60: =VLOOKUP($AC$11,'Parameters & aannames'!$C$32:$I$47,MATCH(AQ53,'Parameters & aannames'!$C$32:$I$32,0),FALSE)*aandeel_bron3 -> 0 | AR60: =VLOOKUP($AC$11,'Parameters & aannames'!$C$32:$I$47,MATCH(AR53,'Parameters & aannames'!$C$32:$I$32,0),FALSE)*aandeel_bron3 -> 0
AH61: ="Emissie bijstook "&AG11 -> Emissie bijstook Aardgasketel (NL) | AN61: kg/GJ | AO61: =VLOOKUP($AG$11,'Parameters & aannames'!$C$32:$I$47,MATCH(AO53,'Parameters & aannames'!$C$32:$I$32,0),FALSE)*aandeel_piek1 -> 11.4375 | AP61: =VLOOKUP($AG$11,'Parameters & aannames'!$C$32:$I$47,MATCH(AP53,'Parameters & aannames'!$C$32:$I$32,0),FALSE)*aandeel_piek1 -> 11.4375 | AQ61: =VLOOKUP($AG$11,'Parameters & aannames'!$C$32:$I$47,MATCH(AQ53,'Parameters & aannames'!$C$32:$I$32,0),FALSE)*aandeel_piek1 -> 11.4375 | AR61: =VLOOKUP($AG$11,'Parameters & aannames'!$C$32:$I$47,MATCH(AR53,'Parameters & aannames'!$C$32:$I$32,0),FALSE)*aandeel_piek1 -> 11.4375
AH62: ="Emissie bijstook "&AI11 -> Emissie bijstook - bron - | AN62: kg/GJ | AO62: =VLOOKUP($AI$11,'Parameters & aannames'!$C$32:$I$47,MATCH(AO53,'Parameters & aannames'!$C$32:$I$32,0),FALSE)*aandeel_piek2 -> 0 | AP62: =VLOOKUP($AI$11,'Parameters & aannames'!$C$32:$I$47,MATCH(AP53,'Parameters & aannames'!$C$32:$I$32,0),FALSE)*aandeel_piek2 -> 0 | AQ62: =VLOOKUP($AI$11,'Parameters & aannames'!$C$32:$I$47,MATCH(AQ53,'Parameters & aannames'!$C$32:$I$32,0),FALSE)*aandeel_piek2 -> 0 | AR62: =VLOOKUP($AI$11,'Parameters & aannames'!$C$32:$I$47,MATCH(AR53,'Parameters & aannames'!$C$32:$I$32,0),FALSE)*aandeel_piek2 -> 0
AH63: Emissie netverlies | AN63: kg/GJ | AO63: =aandeel_verlies*AO64 -> 5.524308333 | AP63: =aandeel_verlies*AP64 -> 5.231708333 | AQ63: =aandeel_verlies*AQ64 -> 4.841575 | AR63: =aandeel_verlies*AR64 -> 4.548975
AH64: Totaal | AN64: kg/GJ | AO64: =(AO55+AO56+AO58+AO59+AO60+AO57+AO61+AO62)/(1-aandeel_verlies) -> 27.62154167 | AP64: =(AP55+AP56+AP58+AP59+AP60+AP57+AP61+AP62)/(1-aandeel_verlies) -> 26.15854167 | AQ64: =(AQ55+AQ56+AQ58+AQ59+AQ60+AQ57+AQ61+AQ62)/(1-aandeel_verlies) -> 24.207875 | AR64: =(AR55+AR56+AR58+AR59+AR60+AR57+AR61+AR62)/(1-aandeel_verlies) -> 22.744875
AH67: Doelstelling Klimaatakkoord 2030 | AP67: ='Parameters & aannames'!G50 -> 18.9 | AQ67: ='Parameters & aannames'!H50 -> 18.9 | AR67: ='Parameters & aannames'!I50 -> 18.9
AH68: Doelstellingen Warmtewet | AO68: ='Parameters & aannames'!F49 -> 40 | AP68: ='Parameters & aannames'!G49 -> 34.5 | AQ68: ='Parameters & aannames'!H49 -> 25 | AR68: ='Parameters & aannames'!I49 -> 0
AH69: Emissie geothermiebron - pompen | AO69: =AO55/AO$64 -> 0.1008874414 | AP69: =AP55/AP$64 -> 0.07457092569 | AQ69: 0.03453421665 | AR69: 0
AH70: Emissie geothermiebron - bijvangst | AO70: 0.2446785948 | AP70: 0.2583630267 | AQ70: 0.2791818778 | AR70: 0.2971394655
AH71: ="Emissie "&Y11 -> Emissie Biomassa, uit NL 2020 | AO71: =AO58/AO$64 -> 0 | AP71: =AP58/AP$64 -> 0 | AQ71: 0 | AR71: 0
AH72: ="Emissie "&AA11 -> Emissie AVI | AO72: 0 | AP72: 0 | AQ72: 0 | AR72: 0
AH73: ="Emissie "&AC11 -> Emissie - bron - | AO73: 0 | AP73: 0 | AQ73: 0 | AR73: 0
AH74: Emissie WP | AO74: =AO57/AO$64 -> 0.04035497657 | AP74: =AP57/AP$64 -> 0.02982837027 | AQ74: =AQ57/AQ$64 -> 0.01381368666 | AR74: =AR57/AR$64 -> 0
AH75: ="Emissie bijstook "&AG11 -> Emissie bijstook Aardgasketel (NL) | AO75: =AO61/AO$64 -> 0.4140789873 | AP75: =AP61/AP$64 -> 0.4372376773 | AQ75: 0.4724702189 | AR75: 0.5028605345
AH76: ="Emissie bijstook "&AI11 -> Emissie bijstook - bron - | AO76: 0 | AP76: 0 | AQ76: 0 | AR76: 0
AH77: Emissie netverlies | AO77: 0.2 | AP77: 0.2 | AQ77: 0.2 | AR77: 0.2
AO79: =SUM(AO69:AO77) -> 1 | AP79: =SUM(AP69:AP77) -> 1 | AQ79: =SUM(AQ69:AQ77) -> 1 | AR79: =SUM(AR69:AR77) -> 1

Sheet Parameters & aannames
C2: Parameters & aannames
C4: Conversie | K4: Referentie | L4: Opmerkingen
C5: Verbrandingswaarde
C6: aardgas - onderwaarde | E6: 31.65 | F6: MJ/m3 = | G6: =E6/1000 -> 0.03165 | H6: GJ/m3 | K6: Zijlema (2020) | L6: Calorische onderwaarde aardgas
C7: aardgas - bovenwaarde | E7: =E6*E10 -> 35.1315 | F7: MJ/m3 = | G7: =E7/1000 -> 0.0351315 | H7: GJ/m3 | K7: Zijlema (2020) | L7: Calorische bovenwaarde aardgas
C10: omrekenfactor bovenwaarde/onderwaarde | E10: 1.11 | K10: RVO (2019, update 2020) | L10: Bijlage 1
E12: 1 | F12: kg/kWh = | G12: 277.7777778 | H12: kg/GJ
C13: Cpwater | E13: 4180 | F13: J/kg K
C14: 𝜌water | E14: 1000 | F14: kg/m3
C16: Emissiefactoren
E18: 2015 | F18: 2020 | G18: 2025 | H18: 2030 | I18: 20XX
C19: Emissiefactor elektriciteit | D19: kg/GJe | E19: =0.53/0.0036 -> 147.2222222 | F19: =0.3/0.0036 -> 83.33333333 | G19: =0.21/0.0036 -> 58.33333333 | H19: =0.09/0.0036 -> 25 | I19: 0 | K19: PBL, TNO, CBS en RIVM (2021) | L19: Integrale methode, 2015 & 2020 uit KEV 2019, 2025&2030 uit KEV 2021
C20: Emissiefactor aardgas (bovenwaarde) | D20: kg/GJp | E20: 50.8 | K20: Zijlema (2020) | L20: Aardgas uit Nederland betekend het gemiddelde van 111 gas velden in NL en het geimporteerde gas uit Belgie. 2021: 56.4 kg/GJ op onderwaarde en 50.8 kg/GJ op bovenwaarde
C21: Rendement gasketel (bovenwaarde) | D21: % | E21: 0.8 | K21: NEN (2015) | L21: NEN7125
C22: hulpenergie
C24: Formatiegas | E24: Gas/water ratio | F24: Emissiefactor | G24: Verbrandingswaarde | H24: Gem. COP bronpompen
E25: - | F25: kg/GJp | G25: GJ/m3 | H25: -
C26: Perm ouderdom | E26: 0.3 | F26: 73 | G26: 0.027 | H26: 16 | K26: Dinkelman et al. (2021) | L26: Calorische bovenwaarde (HHV) van formatiegas (methaan + andere koolwaterstoffen)
C27: Jura/Krijt ouderdom | E27: 1 | F27: 64 | G27: 0.033 | H27: 24 | K27: Dinkelman et al. (2021) | L27: Calorische bovenwaarde (HHV) van formatiegas (methaan + andere koolwaterstoffen)
C28: Anders (zelf in te vullen) | E28: vul waarde in | F28: vul waarde in | G28: vul waarde in | H28: vul waarde in | L28: Vul hier zelf een emissiefactor in
C30: CO2-emissiefactoren brandstof
E32: 2015 | F32: 2020 | G32: 2025 | H32: 2030 | I32: 20XX | K32: Bron:
C33: - bron -
C34: Aardgasketel (NL) | D34: kg/GJth | F34: =M69/0.8 -> 63.54166667 | G34: =F34 -> 63.54166667 | H34: =F34 -> 63.54166667 | I34: =H34 -> 63.54166667 | K34: Dinkelman et al. (2021)
C35: Aquathermie + WKO + WP 70°C | D35: kg/GJth | F35: 29.2 | G35: 20.4 | H35: 8.8 | I35: 0 | K35: Dinkelman et al. (2021)
C36: AVI | D36: kg/GJth | F36: 9.9 | G36: 6.9 | H36: 4.2 | I36: 2 | K36: Dinkelman et al. (2021)
C37: Biomassa, geen emissie | D37: kg/GJth | F37: 0 | G37: 0 | H37: 0 | I37: 0 | K37: Dinkelman et al. (2021)
C38: Biomassa, uit NL 2020 | D38: kg/GJth | F38: =H103/I103 -> 4.444444444 | G38: =F38 -> 4.444444444 | H38: =G38 -> 4.444444444 | I38: =H38 -> 4.444444444 | K38: RHDHV (2020) | L38: In kg CO2-eq/GJ, enkel waarden van 2020 beschikbaar
C39: Biomassa, uit VS, pulphout 2020 | D39: kg/GJth | F39: =H104/I104 -> 15.34653465 | G39: =F39 -> 15.34653465 | H39: 15.34653465 | I39: 15.34653465 | K39: RHDHV (2020) | L39: In kg CO2-eq/GJ, enkel waarden van 2020 beschikbaar
C40: Biomassa, uit VS, resthout 2020 | D40: kg/GJth | F40: =H105/I105 -> 11.38613861 | G40: 11.38613861 | H40: 11.38613861 | I40: 11.38613861 | K40: RHDHV (2020) | L40: In kg CO2-eq/GJ, enkel waarden van 2020 beschikbaar
C41: Restwarmte zonder e-productie | D41: kg/GJth | F41: 8.3 | G41: 5.8 | H41: 2.5 | I41: 0 | K41: Dinkelman et al. (2021)
C42: Russisch aardgas 2020 | D42: kg/GJth | F42: =H106/I106 -> 71.57303371 | G42: =F42 -> 71.57303371 | H42: =G42 -> 71.57303371 | I42: 71.57303371 | K42: RHDHV (2020) | L42: In kg CO2-eq/GJ, enkel waarden van 2020 beschikbaar
C43: WKK (gas) zonder e-derving | D43: kg/GJth | F43: 50.3 | G43: 68.7 | H43: 93.2 | I43: 111.7 | K43: Dinkelman et al. (2021) | L43: De rekenmethodiek uit de huidige warmtewet leidt ertoe dat vanwege de beoogde verduurzaming van de Nederlandse elektriciteitsmix in de toekomst een groter deel van de CO2-emissie wordt toegewezen aan warmte. Zo stijgt de relatieve CO2-uitstoot van een WKK zonder derving.
C44: WKK (biogeen) zonder e-derving | D44: kg/GJth | F44: 0 | G44: 0 | H44: 0 | I44: 0 | K44: Dinkelman et al. (2021)
C45: WKK (gas) met e-derving (aftapwarmte) | D45: kg/GJth | F45: 13 | G45: 9 | H45: 5.5 | I45: 2.6 | K45: Dinkelman et al. (2021)
C46: WKO + WP 70°C | D46: kg/GJth | F46: 29.6 | G46: 20.7 | H46: 8.9 | I46: 0 | K46: Dinkelman et al. (2021)
C47: Bron - eigen invulling | D47: kg/GJth | L47: Vul hier zelf een emissiefactor in
C49: Doelstelling Warmtewet | D49: 25 | E49: kg/GJth | F49: 40 | G49: 34.5 | H49: 25 | I49: 0 | K49: https://www.internetconsultatie.nl/warmtewet2
C50: Doelstelling Klimaatakkoord | D50: 18.9 | E50: kg/GJth | G50: 18.9 | H50: 18.9 | I50: 18.9 | K50: https://www.klimaatakkoord.nl/documenten/publicaties/2019/06/28/klimaatakkoord
C54: Referenties | K54: ja
C55: Zijlema (2020). Berekening van de standaard CO2-emissiefactor aardgas t.b.v. nationale monitoring 2021 en emissiehandel 2021 Van: https://www.rvo.nl/sites/default/files/2021/05/Berekening%20van%20de%20standaard%20CO2-emissiefactor%20aardgas%202021_0.pdf | K55: nee
C56: RVO (2019, update 2020). Duurzaamheid van warmte- & koudelevering. Voorstel voor inhoud van de rapportageverplichting onder de Warmtewet. Eindrapport versie 3.
C57: NEN (2015). NEN 7125. Energieprestatienorm voor maatregelen op gebiedsniveau (EMG) – Bepalingsmethode.
C58: NEN (2020). NTA 8800 (nl). Energieprestatie van gebouwen – Bepalingsmethode.
C59: PBL, TNO, CBS en RIVM (2021), Klimaat- en Energieverkenning 2021. Den Haag: Planbureau voor de Leefomgeving
C60: Schoots, K. & P. Hammingh (2019), Klimaat- en Energieverkenning 2019, Den Haag: Planbureau voor de Leefomgeving.
C61: HaskoningDHV Nederland B.V. (2020). Warmte uit aardgas of biomassa? Referentie: BH1516I&BRP001F01. https://www.nvde.nl/wp-content/uploads/2020/03/BH1576-6-mei_def.pdf
C62: ECN (2018). Primaire fossiele energiefactor elektriciteit op bovenwaarde (HHV) voor toepassing in de energieprestatienorm NTA8800
C63: Dinkelman et al. (2021). Factsheet duurzaamheid geothermie.
C66: NTA8800, gebruikte tabellen:
L68: kg/kWh | M68: kg/GJ
K69: aardgas | L69: 0.183 | M69: =L69/0.0036 -> 50.83333333
K70: AVI | L70: 0.113 | M70: =L70/0.0036 -> 31.38888889
K71: Restwarmte | L71: 0.034 | M71: 9.444444444
C93: HaskoningDHV (2020):
H102: CO2 emissiefactor [kg/GJp] | I102: Rendement/COP [-]
G103: Biomassa, uit NL | H103: 4.8 | I103: 1.08
G104: Biomassa, uit VS, pulphout | H104: 15.5 | I104: 1.01
G105: Biomassa, uit VS, resthout | H105: 11.5 | I105: 1.01
G106: Russisch aardgas | H106: 63.7 | I106: 0.89
